bitfinex/quotes_ETHUSD_20260120
["timestamp","ask_amount","ask_price","bid_price","bid_amount"]
[1768904028785,12.29639957,3100.7,3100.0,0.45835693]
[1768904029822,12.29639957,3100.7,3099.8,1.35768186]
[1768904030224,12.29639957,3100.5,3099.8,4.58365343]
[1768904030396,12.29639957,3100.5,3099.8,3.22597157]
[1768904030999,12.29639957,3100.5,3099.6,11.70766587]
[1768904031311,12.29639957,3100.5,3099.9,3.22586013]
[1768904031683,0.001,3100.4,3099.8,14.93368045]
[1768904032320,0.001,3100.4,3099.8,11.70766587]
[1768904032612,12.29739957,3100.4,3099.9,1.49337447]
[1768904032784,12.29739957,3100.4,3099.7,18.15986333]
[1768904032977,12.29739957,3100.4,3099.8,11.70766587]
[1768904033184,0.001,3100.4,3099.8,11.70766587]
[1768904033935,0.0024,3103.0,3100.0,12.45493789]
[1768904033936,12.90176456,3100.9,3100.0,12.45493789]
[1768904034302,12.90176456,3100.9,3100.2,12.45493789]
[1768904035003,0.532,3100.9,3100.2,12.45493789]
[1768904036242,0.532,3100.9,3100.2,15.6805258]
[1768904037053,0.532,3100.9,3100.2,18.90612414]
[1768904038143,3.22370504,3102.1,3100.2,18.90612414]
[1768904038144,12.36976456,3101.6,3100.3,12.45493789]
[1768904038439,12.36976456,3101.6,3100.2,10.20778459]
[1768904038440,12.90176456,3101.6,3100.5,12.45493789]
[1768904039241,12.90176456,3101.6,3100.6,12.98593789]
[1768904040109,12.36976456,3101.6,3100.7,3.2250782]
[1768904040310,12.36976456,3101.8,3100.8,12.45493789]
[1768904040540,12.36976456,3101.8,3101.0,12.45493789]
[1768904040925,0.532,3101.9,3101.0,12.45493789]
[1768904041322,0.532,3101.9,3101.0,12.98593789]
[1768904042117,12.90176456,3101.9,3101.1,12.45493789]
[1768904042340,12.36976456,3101.9,3101.1,12.45493789]
[1768904042554,12.36976456,3101.9,3101.2,0.59643451]
[1768904043867,0.001,3101.5,3101.2,0.59643451]
[1768904045935,0.001,3101.5,3101.2,3.82098259]
[1768904047427,0.001,3101.5,3101.3,12.45493789]
[1768904048953,0.001,3101.5,3101.4,3.22435029]
[1768904049259,0.001,3101.5,3101.4,17.62930534]
[1768904050234,0.001,3101.5,3101.4,14.40495505]
[1768904050565,0.001,3101.5,3101.4,14.93595505]
[1768904051157,0.001,3101.5,3101.4,18.16030534]
[1768904051764,0.001,3101.5,3101.4,14.93595505]
[1768904052083,0.001,3101.5,3101.4,0.531]
[1768904052444,0.001,3101.5,3101.3,0.531]
[1768904052762,12.37076456,3101.5,3101.1,0.531]
[1768904053059,12.37076456,3101.5,3100.8,12.45493789]
[1768904053262,12.37076456,3101.5,3100.8,15.67990636]
[1768904053447,13.60784102,3101.5,3100.8,3.22496847]
[1768904053654,13.60784102,3101.5,3100.7,0.531]
[1768904053849,12.37076456,3101.5,3100.8,3.22496327]
[1768904054663,12.37076456,3101.5,3100.8,6.44993747]
[1768904054857,12.37076456,3101.5,3100.8,3.22496327]
[1768904055238,12.37076456,3101.5,3100.8,6.44993747]
[1768904055437,12.37076456,3101.5,3100.8,3.22496327]
[1768904055833,12.37076456,3101.5,3100.8,6.44993747]
[1768904056038,12.37076456,3101.5,3100.8,8.39352501]
[1768904056240,12.37076456,3101.5,3100.8,17.6234887]
[1768904056774,0.001,3101.2,3100.8,20.8484629]
[1768904057072,12.37076456,3101.2,3100.8,5.16855081]
[1768904057670,12.37076456,3101.2,3100.8,1.94358754]
[1768904058141,12.37076456,3101.2,3100.7,3.22507543]
[1768904058350,12.37076456,3101.2,3100.6,3.22515492]
[1768904058785,12.37076456,3101.2,3100.5,0.531]
[1768904058963,12.37076456,3101.2,3100.5,3.75626452]
[1768904059167,12.37076456,3101.2,3100.5,6.98155076]
[1768904059370,12.37076456,3101.2,3100.6,1.94364887]
[1768904060862,12.37076456,3101.2,3100.7,3.2250782]
[1768904062287,12.37076456,3101.2,3100.4,15.68030461]
[1768904062475,12.37076456,3101.2,3100.4,12.45493789]
[1768904062984,12.37076456,3101.2,3100.5,15.68016561]
[1768904063492,12.37076456,3101.2,3100.5,3.22526282]
[1768904063688,12.37076456,3101.2,3100.3,16.60491367]
[1768904063689,13.66104102,3101.2,3100.3,12.84845242]
[1768904063863,13.66104102,3101.2,3100.3,13.37945242]
[1768904064059,13.66104102,3101.2,3100.3,16.60487837]
[1768904064256,13.66104102,3101.2,3100.3,12.84845242]
[1768904064490,13.66104102,3101.2,3100.3,3.2274452]
[1768904065408,13.66104102,3101.2,3100.4,3.22533973]
[1768904066109,12.37076456,3101.2,3100.5,12.84645242]
[1768904066389,12.37076456,3101.2,3100.4,21.28020823]
[1768904066573,12.37076456,3101.2,3100.5,12.84645242]
[1768904067396,12.37076456,3101.2,3100.5,16.07167726]
[1768904068693,12.37076456,3101.2,3100.5,3.22522484]
[1768904068998,12.37076456,3101.2,3100.5,3.22525776]
[1768904069568,11.70871836,3100.8,3100.3,0.002]
[1768904069772,11.70871836,3100.8,3100.3,0.533]
[1768904069970,11.70871836,3100.8,3100.4,3.2253885]
[1768904070602,11.70871836,3100.8,3100.3,13.37945242]
[1768904070798,11.70871836,3100.8,3100.4,4.8858912]
[1768904071005,0.001,3100.9,3100.5,12.84645242]
[1768904071523,0.001,3100.9,3100.6,3.22518222]
[1768904071812,0.0024,3102.0,3100.7,13.37745242]
[1768904071813,11.70871836,3101.6,3100.7,13.37745242]
[1768904072106,11.70871836,3101.6,3100.9,12.84645242]
[1768904072309,11.70871836,3101.6,3100.8,2.83629991]
[1768904072511,11.70871836,3101.6,3100.8,0.531]
[1768904072875,11.70871836,3101.4,3100.6,3.22518222]
[1768904073274,11.70871836,3101.4,3100.6,16.07163464]
[1768904073799,11.70871836,3101.4,3100.6,19.29681686]
[1768904073980,11.70871836,3101.4,3100.7,12.84645242]
[1768904074186,0.532,3101.8,3100.9,12.84645242]
[1768904074381,11.70871836,3101.9,3100.9,13.37745242]
[1768904074692,11.70871836,3101.9,3101.1,12.84645242]
[1768904075881,0.0024,3102.0,3101.3,12.84645242]
[1768904076078,0.0024,3102.0,3101.5,12.84645242]
[1768904077504,11.71111836,3102.0,3101.5,12.84645242]
[1768904077817,11.71111836,3102.0,3101.5,16.07068999]
[1768904078283,11.71111836,3102.0,3101.4,2.25201271]
[1768904078509,11.71111836,3102.0,3101.1,12.84645242]
[1768904078510,11.71111836,3102.0,3101.1,0.531]
[1768904078921,11.71111836,3102.0,3101.5,3.22422684]
[1768904079639,11.71111836,3102.0,3101.6,12.84645242]
[1768904079640,0.0024,3102.0,3101.6,12.84645242]
[1768904079943,0.0024,3102.0,3101.7,3.22403843]
[1768904080146,0.0024,3102.0,3101.8,1.92946248]
[1768904082241,0.0024,3102.0,3101.8,5.15338285]
[1768904083369,11.54728054,3102.4,3101.8,20.79620001]
[1768904083582,11.54728054,3102.4,3101.8,18.86673753]
[1768904083965,11.54728054,3102.4,3101.9,12.41888268]
[1768904084276,0.0024,3103.0,3101.9,12.41888268]
[1768904084277,12.87194733,3102.7,3101.9,12.41888268]
[1768904084473,12.87194733,3102.7,3101.9,12.94988268]
[1768904084651,12.87194733,3102.7,3102.0,1.93977375]
[1768904085991,12.87434733,3103.0,3102.2,12.41888268]
[1768904086272,12.87434733,3103.0,3102.3,0.531]
[1768904086651,12.87434733,3103.0,3102.1,3.7546227]
[1768904086852,12.87434733,3103.0,3102.1,0.531]
[1768904087053,12.87194733,3102.8,3102.1,0.531]
[1768904087844,12.87194733,3102.8,3102.0,3.75471477]
[1768904088269,12.87194733,3102.8,3102.0,19.39732407]
[1768904090468,12.87194733,3102.8,3102.1,12.41888268]
[1768904091277,12.87434733,3103.0,3102.1,12.41888268]
[1768904091481,12.87434733,3103.0,3102.0,6.97844139]
[1768904091482,12.87434733,3103.0,3102.3,12.41888268]
[1768904091652,0.0024,3103.0,3102.3,12.41888268]
[1768904091859,12.87434733,3103.0,3102.3,12.41888268]
[1768904092249,12.87434733,3103.0,3102.4,3.22331098]
[1768904092557,12.87434733,3103.0,3102.1,3.75457427]
[1768904092764,12.87194733,3102.8,3102.0,3.75465214]
[1768904093179,12.87194733,3102.8,3102.1,3.22361786]
[1768904093981,12.87194733,3102.8,3102.0,3.75464856]
[1768904094288,12.18488269,3102.5,3102.0,3.75464856]
[1768904094662,12.18488269,3102.5,3101.9,3.2237815]
[1768904094993,12.18488269,3102.5,3102.0,3.22362731]
[1768904095671,12.18488269,3102.5,3101.8,3.7548673]
[1768904095872,12.18488269,3102.5,3101.9,3.22382622]
[1768904096589,12.18488269,3102.5,3101.8,16.5215556]
[1768904097363,12.18488269,3102.5,3101.8,15.9905556]
[1768904097665,12.18488269,3102.5,3101.8,13.29767537]
[1768904097866,12.18488269,3102.5,3101.8,16.52158801]
[1768904098260,12.18488269,3102.5,3101.8,18.49615041]
[1768904098490,12.18488269,3102.5,3101.8,1.9745624]
[1768904099097,12.18388269,3102.3,3101.5,3.224195]
[1768904099663,12.18388269,3102.3,3101.2,16.52222215]
[1768904100077,12.18388269,3102.3,3101.2,13.29767537]
[1768904100279,12.18388269,3102.3,3101.4,3.22429631]
[1768904100467,12.18388269,3102.3,3101.3,19.21557425]
[1768904100797,12.18388269,3102.1,3101.3,19.21557425]
[1768904101094,12.18388269,3102.1,3101.4,12.76667537]
[1768904102157,12.18388269,3102.1,3101.3,3.22444462]
[1768904102158,12.18388269,3102.1,3101.2,13.29767537]
[1768904102364,12.18388269,3102.1,3101.2,16.52222764]
[1768904102565,12.18388269,3101.9,3100.8,14.69635706]
[1768904102760,12.18388269,3101.9,3100.8,15.99160032]
[1768904102761,12.18388269,3101.7,3100.8,15.99160032]
[1768904103092,12.18388269,3101.7,3100.4,0.0008]
[1768904103093,12.18388269,3101.7,3100.7,12.76667537]
[1768904103292,12.18388269,3101.7,3100.9,12.76667537]
[1768904103881,12.18388269,3101.7,3100.8,3.22495015]
[1768904104074,12.18388269,3101.7,3100.9,3.22486795]
[1768904104697,12.71488269,3101.9,3100.9,14.13061859]
[1768904106188,12.71488269,3101.9,3101.2,0.002]
[1768904107615,12.18388269,3101.9,3101.2,12.76867537]
[1768904107975,12.71488269,3102.2,3101.2,13.29967537]
[1768904108287,12.71488269,3102.2,3101.4,12.76667537]
[1768904108520,12.71488269,3102.2,3101.3,1.97489998]
[1768904110629,12.71488269,3102.2,3101.3,5.19933719]
[1768904110916,12.71488269,3102.2,3101.3,1.97489998]
[1768904111705,12.71488269,3102.2,3101.2,12.76867537]
[1768904111919,12.71488269,3102.2,3101.3,12.76667537]
[1768904114395,12.18388269,3102.1,3101.2,0.002]
[1768904115288,12.18388269,3102.1,3101.3,15.9911064]
[1768904115487,12.18388269,3102.1,3101.4,12.76667537]
[1768904115925,12.18388269,3102.1,3101.5,12.76667537]
[1768904117843,0.531,3102.2,3101.7,12.76667537]
[1768904118399,12.71488269,3102.2,3101.7,12.76667537]
[1768904119157,12.71488269,3102.2,3101.5,15.99087698]
[1768904119313,12.71488269,3102.2,3101.5,18.10458528]
[1768904119514,12.71488269,3102.2,3101.6,12.76667537]
[1768904119836,12.71488269,3102.2,3101.5,2.1137083]
[1768904120009,12.71488269,3102.2,3101.2,13.29967537]
[1768904120206,12.71488269,3102.2,3101.2,0.002]
[1768904120547,12.18388269,3102.1,3101.2,0.002]
[1768904120846,12.18388269,3102.1,3101.2,15.99317729]
[1768904121013,12.18388269,3102.1,3101.2,12.76867537]
[1768904121212,12.18388269,3102.1,3101.2,15.99318179]
[1768904121409,13.45537096,3102.1,3101.2,15.99318179]
[1768904124026,13.45537096,3102.1,3101.3,11.81344543]
[1768904124225,12.18388269,3102.1,3101.3,11.81344543]
[1768904124427,12.14263726,3102.3,3101.3,11.81344543]
[1768904125342,12.14263726,3102.3,3101.5,11.81344543]
[1768904125946,12.14263726,3102.3,3101.6,11.81344543]
[1768904126831,11.61163726,3102.3,3101.6,11.81344543]
[1768904127031,11.61163726,3102.3,3101.7,13.63963787]
[1768904127834,11.61163726,3102.3,3101.8,3.22393448]
[1768904128233,0.001,3102.5,3101.9,11.81344543]
[1768904128432,0.532,3102.5,3101.9,11.81344543]
[1768904128668,12.14363726,3102.5,3101.9,11.81344543]
[1768904129372,12.14363726,3102.5,3101.9,13.82220472]
[1768904130473,12.14363726,3102.5,3101.9,17.04602156]
[1768904131673,0.001,3102.5,3102.0,11.81344543]
[1768904132078,0.001,3102.5,3102.2,11.81344543]
[1768904132874,11.61263726,3102.5,3102.0,15.03716189]
[1768904133070,11.61263726,3102.5,3102.0,13.84063041]
[1768904133435,11.61263726,3102.5,3102.0,17.0643221]
[1768904133869,11.61263726,3102.5,3102.0,13.84063041]
[1768904134068,11.61263726,3102.5,3101.8,15.03931552]
[1768904134381,11.61263726,3102.5,3102.0,3.22372366]
[1768904134564,11.61263726,3102.5,3102.0,15.03716909]
[1768904135904,0.001,3102.5,3102.3,11.81344543]
[1768904136104,0.0024,3103.0,3102.3,11.81344543]
[1768904136275,11.61403726,3103.0,3102.3,13.31715224]
[1768904136481,11.61403726,3103.0,3102.3,1.50370681]
[1768904136879,12.14503726,3103.0,3102.3,1.50370681]
[1768904137902,12.14503726,3103.0,3102.3,13.31715224]
[1768904138808,12.14503726,3103.0,3102.1,3.75461821]
[1768904138971,12.14503726,3103.0,3101.9,11.81344543]
[1768904139306,11.61163726,3102.9,3101.9,12.34444543]
[1768904139724,11.61163726,3102.9,3102.1,11.81344543]
[1768904140005,11.61163726,3102.9,3102.3,11.81344543]
[1768904140996,11.61163726,3102.9,3101.8,15.03937204]
[1768904141166,11.61163726,3102.9,3101.8,15.57037204]
[1768904141367,11.61163726,3102.9,3102.0,3.22367015]
[1768904142669,11.61163726,3102.9,3102.0,15.03711558]
[1768904142868,11.61163726,3102.9,3102.1,1.82609394]
[1768904143097,11.61163726,3102.9,3101.9,15.03724727]
[1768904143784,11.61163726,3102.9,3102.0,12.15334386]
[1768904143978,11.61163726,3102.9,3102.0,15.37704656]
[1768904144880,11.61163726,3102.9,3102.0,15.37705913]
[1768904145077,11.61163726,3102.9,3102.0,15.37706602]
[1768904145400,11.61163726,3102.9,3102.3,0.002]
[1768904145606,11.87111952,3102.6,3102.3,0.002]
[1768904146171,0.001,3102.6,3102.3,12.15534386]
[1768904149074,0.001,3102.6,3102.4,12.15334386]
[1768904150417,0.001,3102.6,3102.3,12.15534386]
[1768904150716,0.001,3102.6,3102.3,15.37868691]
[1768904151215,0.001,3102.6,3102.3,12.15534386]
[1768904151617,0.001,3102.6,3102.3,0.002]
[1768904152199,0.001,3102.6,3102.4,12.15334386]
[1768904152399,0.001,3102.6,3102.4,13.69121921]
[1768904152712,0.0024,3103.0,3102.4,13.69121921]
[1768904152912,0.5334,3103.0,3102.4,13.69121921]
[1768904153424,0.5334,3103.0,3102.4,4.7611151]
[1768904153719,0.5334,3103.0,3102.5,11.80002813]
[1768904153720,0.0024,3103.0,3102.5,11.80002813]
[1768904155708,0.0024,3103.0,3102.7,11.80002813]
[1768904158202,0.0024,3103.0,3102.8,11.80002813]
[1768904159418,11.61820177,3103.0,3102.3,3.22535748]
[1768904159724,11.61820177,3103.0,3102.3,15.02538561]
[1768904160418,11.61820177,3103.0,3102.3,0.002]
[1768904160623,12.83503566,3103.0,3102.3,0.002]
[1768904161537,11.61580177,3102.9,3101.8,0.002]
[1768904161689,11.61580177,3102.4,3101.8,0.002]
[1768904162016,12.74449722,3102.4,3101.8,0.002]
[1768904162234,11.61580177,3102.0,3101.5,0.002]
[1768904162442,12.14680177,3102.0,3101.5,0.002]
[1768904164636,12.14680177,3102.0,3101.2,0.002]
[1768904164794,11.61580177,3101.9,3101.2,0.002]
[1768904164995,3.75473897,3102.0,3101.2,0.002]
[1768904164996,11.61580177,3101.7,3101.2,0.002]
[1768904165621,0.531,3102.0,3101.2,11.80202813]
[1768904166196,0.531,3102.0,3101.2,3.2264865]
[1768904166402,12.14680177,3102.0,3101.3,11.80002813]
[1768904167801,12.14680177,3102.0,3101.2,0.002]
[1768904168132,11.61580177,3101.8,3101.2,0.002]
[1768904170831,11.61580177,3101.8,3101.5,0.002]
[1768904171051,0.001,3101.6,3101.5,0.002]
[1768904171653,0.001,3101.6,3100.9,0.002]
[1768904171654,12.14780177,3101.6,3100.9,0.002]
[1768904171803,11.61580177,3101.4,3100.9,0.002]
[1768904173356,11.61580177,3101.4,3100.4,3.22612205]
[1768904173641,11.61580177,3101.4,3100.6,11.80002813]
[1768904173856,1.74578018,3101.5,3100.6,11.80002813]
[1768904174050,11.61580177,3101.4,3100.6,11.80002813]
[1768904174232,11.61580177,3101.4,3100.6,12.33102813]
[1768904174752,11.61580177,3101.4,3100.6,15.55619607]
[1768904175210,11.61580177,3101.4,3100.6,12.33102813]
[1768904175545,11.61580177,3101.4,3100.6,15.55618975]
[1768904176069,12.83058195,3101.4,3100.7,11.80002813]
[1768904176404,11.61580177,3101.4,3100.7,11.80002813]
[1768904176622,0.531,3101.5,3100.7,11.80002813]
[1768904176843,0.001,3101.6,3100.9,11.80002813]
[1768904177059,0.001,3101.6,3101.1,11.80002813]
[1768904177220,0.001,3101.6,3101.3,11.80002813]
[1768904177434,11.61580177,3102.1,3101.3,11.80002813]
[1768904178334,11.61580177,3102.1,3101.5,11.80002813]
[1768904179448,11.61580177,3102.1,3101.3,11.80002813]
[1768904179652,11.61580177,3102.1,3101.3,0.531]
[1768904179856,11.61580177,3101.9,3101.3,0.531]
[1768904180471,1.21478018,3102.0,3101.5,11.80002813]
[1768904180639,11.61580177,3102.6,3101.6,12.33102813]
[1768904181146,11.61580177,3102.6,3101.7,12.33102813]
[1768904181346,11.61580177,3102.4,3101.8,3.22393448]
[1768904181545,1.21478018,3102.5,3101.9,11.80002813]
[1768904181855,11.61580177,3102.5,3101.9,11.80002813]
[1768904182451,11.61580177,3102.5,3101.7,12.33102813]
[1768904182657,11.61580177,3102.5,3101.8,0.531]
[1768904183356,11.61580177,3102.5,3101.5,12.16368239]
[1768904183589,0.001,3101.6,3101.5,0.002]
[1768904183761,0.001,3101.6,3101.5,5.29604632]
[1768904183939,12.48740819,3102.0,3101.5,5.29604632]
[1768904184455,12.48740819,3102.6,3101.6,12.16168239]
[1768904185556,12.48740819,3102.5,3101.5,0.002]
[1768904185755,12.48740819,3102.5,3101.5,0.533]
[1768904185956,12.48740819,3102.5,3101.5,3.22624459]
[1768904186559,12.48740819,3102.5,3101.5,0.002]
[1768904186863,12.48740819,3102.3,3101.5,0.002]
[1768904187033,13.01940819,3102.3,3101.5,0.002]
[1768904188362,12.48740819,3102.2,3101.5,0.002]
[1768904192037,3.22352278,3102.2,3101.5,0.002]
[1768904192237,12.48740819,3102.1,3101.5,0.002]
[1768904194243,12.48740819,3102.1,3101.5,12.16368239]
[1768904194455,12.48740819,3102.1,3101.5,0.002]
[1768904195479,12.48740819,3102.1,3101.6,0.002]
[1768904195840,12.48840819,3101.9,3101.6,0.002]
[1768904196655,12.48840819,3101.9,3101.5,0.002]
[1768904196855,12.48740819,3101.7,3101.5,0.002]
[1768904198103,12.48740819,3101.7,3101.3,0.002]
[1768904201485,12.48740819,3101.7,3101.1,0.002]
[1768904202285,12.48740819,3101.6,3101.1,0.002]
[1768904202994,12.48740819,3101.2,3100.4,0.0008]
[1768904203166,12.48740819,3101.0,3100.4,0.0008]
[1768904203366,12.48740819,3101.0,3100.4,12.16248239]
[1768904204089,11.99377418,3101.4,3100.8,12.35659031]
[1768904204297,3.3531221,3103.0,3100.8,12.88759031]
[1768904204298,11.99377418,3102.0,3100.8,12.88759031]
[1768904204460,13.1942516,3101.9,3101.0,12.35659031]
[1768904205998,13.1942516,3101.9,3101.0,12.88759031]
[1768904206492,11.99377418,3101.8,3101.0,12.35659031]
[1768904206878,11.99377418,3101.7,3100.7,12.35659031]
[1768904207086,11.99377418,3101.5,3100.8,12.88759031]
[1768904208073,11.99377418,3101.5,3100.8,12.35659031]
[1768904209109,11.99377418,3101.5,3101.3,0.002]
[1768904209405,11.99377418,3101.5,3100.8,12.35659031]
[1768904209614,11.99377418,3101.5,3101.0,0.002]
[1768904209818,1.14705192,3101.6,3101.0,0.002]
[1768904209819,11.99377418,3101.3,3101.0,0.002]
[1768904211012,11.99377418,3101.5,3101.0,0.002]
[1768904215718,11.99377418,3101.5,3101.0,11.45775195]
[1768904215889,0.532,3101.6,3101.0,11.45775195]
[1768904216092,0.532,3101.6,3101.2,11.45575195]
[1768904216320,0.001,3101.8,3101.2,11.45575195]
[1768904216895,12.29679143,3101.8,3101.2,11.45575195]
[1768904217451,0.001,3101.8,3101.2,11.45575195]
[1768904217930,0.001,3101.8,3101.3,11.45575195]
[1768904218741,0.001,3101.8,3101.3,12.97688183]
[1768904219601,0.001,3101.8,3101.4,11.45575195]
[1768904221650,0.001,3101.5,3101.4,11.45575195]
[1768904221838,0.001,3101.8,3101.4,11.45575195]
[1768904222251,0.001,3101.8,3101.5,11.45575195]
[1768904224626,0.001,3101.8,3101.6,11.45575195]
[1768904225642,0.001,3101.8,3101.4,14.68006172]
[1768904225849,0.001,3101.8,3101.3,0.002]
[1768904225850,12.29679143,3101.8,3101.3,0.002]
[1768904226058,13.52657057,3101.8,3101.3,0.002]
[1768904233426,12.29679143,3101.5,3101.3,0.002]
[1768904235860,0.001,3101.5,3101.3,0.002]
[1768904236529,12.29679143,3101.5,3101.0,0.533]
[1768904238468,12.29679143,3101.5,3101.0,0.002]
[1768904238673,13.52647057,3101.5,3101.0,0.002]
[1768904239779,13.52647057,3101.5,3101.0,0.2355703]
[1768904241355,12.29679143,3101.5,3101.1,11.45575195]
[1768904242064,0.001,3101.5,3101.1,11.45575195]
[1768904243061,12.29679143,3101.5,3101.0,14.91607594]
[1768904243570,12.29679143,3101.5,3101.0,0.002]
[1768904244067,11.51710618,3101.3,3100.4,3.22609627]
[1768904244229,11.51710618,3101.3,3100.5,3.75628167]
[1768904244634,11.51710618,3101.3,3100.4,0.0008]
[1768904244835,11.51710618,3101.3,3100.5,0.2335703]
[1768904245348,11.51710618,3101.3,3100.5,3.4588559]
[1768904245544,11.51710618,3101.1,3100.5,3.4588559]
[1768904245745,11.51710618,3101.1,3100.4,0.0008]
[1768904245955,12.04910618,3101.1,3100.4,0.0008]
[1768904247675,11.51710618,3100.9,3100.3,0.002]
[1768904247978,11.51710618,3100.7,3100.1,0.2343703]
[1768904249377,11.51710618,3100.7,3100.1,0.0008]
[1768904250387,11.51710618,3100.7,3100.2,11.43610169]
[1768904250574,11.51710618,3100.7,3100.1,11.67047199]
[1768904251485,11.51710618,3100.7,3100.1,0.0008]
[1768904251780,12.10195638,3100.7,3100.1,0.0008]
[1768904257664,12.10195638,3100.7,3100.4,0.002]
[1768904257864,12.10195638,3100.7,3100.1,0.0008]
[1768904258384,12.10195638,3100.7,3100.1,11.43690169]
[1768904260376,0.532,3100.8,3100.2,11.43610169]
[1768904260570,12.04910618,3100.8,3100.2,11.43610169]
[1768904262708,11.51710618,3101.0,3100.3,11.43610169]
[1768904262907,0.532,3101.2,3100.3,11.43610169]
[1768904263107,11.51710618,3101.4,3100.5,11.43610169]
[1768904263280,11.51710618,3101.4,3100.5,11.96710169]
[1768904263674,11.51710618,3101.4,3100.7,12.11579219]
[1768904264207,5.49287776,3101.3,3100.2,12.11579219]
[1768904264506,11.08067299,3101.2,3100.4,0.531]
[1768904265204,11.08067299,3101.2,3100.2,12.64679219]
[1768904265607,11.08067299,3101.2,3100.2,12.11579219]
[1768904265775,11.08067299,3101.0,3100.2,12.64679219]
[1768904266304,11.08067299,3101.0,3100.2,15.87237407]
[1768904266510,11.08067299,3101.0,3100.2,12.64679219]
[1768904266682,12.24194029,3101.0,3100.2,12.64679219]
[1768904268077,12.24194029,3101.0,3100.1,12.11659219]
[1768904269182,12.24194029,3101.0,3100.3,12.11579219]
[1768904269389,11.08067299,3101.4,3100.3,12.11579219]
[1768904269715,11.61267299,3101.4,3100.5,12.11579219]
[1768904269912,0.001,3100.7,3100.5,12.11579219]
[1768904270107,0.532,3101.4,3100.6,12.11579219]
[1768904270108,11.08067299,3101.3,3100.6,12.11579219]
[1768904270295,11.08067299,3101.3,3100.6,12.64679219]
[1768904273489,0.532,3101.4,3100.7,11.99428816]
[1768904273931,0.001,3101.5,3100.7,11.99428816]
[1768904274296,0.001,3101.5,3100.9,11.99428816]
[1768904274498,0.001,3101.5,3100.9,13.83872046]
[1768904275499,0.001,3101.5,3101.1,11.99428816]
[1768904275808,11.83082075,3101.5,3101.1,0.531]
[1768904276007,11.83082075,3101.5,3101.1,12.52528816]
[1768904276801,11.83082075,3101.5,3101.1,0.531]
[1768904277297,11.83082075,3101.5,3101.0,11.99428816]
[1768904279733,11.83082075,3101.5,3100.9,11.99428816]
[1768904279944,11.83082075,3101.5,3100.9,15.21914488]
[1768904280313,11.83082075,3101.5,3100.9,15.21913636]
[1768904280828,11.83082075,3101.5,3100.9,11.99428816]
[1768904281128,13.01390283,3101.5,3100.7,0.531]
[1768904281498,11.82982075,3101.1,3100.7,0.531]
[1768904281926,11.82982075,3101.1,3100.5,3.22528492]
[1768904282136,11.82982075,3101.1,3100.6,0.531]
[1768904282437,11.82982075,3101.1,3100.6,3.75618013]
[1768904282606,11.82982075,3101.1,3100.6,15.75046829]
[1768904283323,11.82982075,3101.1,3100.7,11.99428816]
[1768904283723,11.83082075,3101.2,3100.6,12.52528816]
[1768904284017,11.83082075,3101.2,3100.6,14.10054014]
[1768904284750,11.83082075,3101.2,3100.7,11.99428816]
[1768904285212,0.001,3101.2,3100.8,11.99428816]
[1768904286716,11.83082075,3101.2,3100.8,0.531]
[1768904287134,11.83082075,3101.2,3100.4,15.2216248]
[1768904287333,11.83082075,3101.2,3100.6,0.531]
[1768904287513,11.83082075,3101.2,3100.6,12.52528816]
[1768904287916,11.83082075,3101.2,3100.6,15.75043122]
[1768904288245,11.83082075,3101.2,3100.6,12.52528816]
[1768904289262,11.83082075,3101.2,3100.6,15.75045271]
[1768904289463,11.83082075,3101.2,3100.6,12.52528816]
[1768904289636,11.83082075,3101.2,3100.6,0.531]
[1768904290622,11.83082075,3101.2,3100.6,15.75045704]
[1768904290826,11.83082075,3101.2,3100.6,12.52528816]
[1768904291060,11.83082075,3101.2,3100.7,11.99428816]
[1768904291826,11.83082075,3101.2,3100.6,12.52528816]
[1768904292764,11.83082075,3101.2,3100.6,11.99428816]
[1768904293061,11.83082075,3101.2,3100.6,12.52528816]
[1768904293868,0.001,3100.9,3100.6,12.52528816]
[1768904294940,0.001,3100.9,3100.6,15.75046693]
[1768904295141,0.001,3100.9,3100.6,17.62169174]
[1768904295464,0.001,3100.9,3100.6,14.39651297]
[1768904295639,0.001,3100.9,3100.6,17.62166766]
[1768904296136,0.001,3100.9,3100.6,14.39651297]
[1768904296544,0.001,3100.9,3100.6,17.6216745]
[1768904296745,0.001,3101.2,3100.8,11.99428816]
[1768904298172,0.001,3101.2,3100.9,11.99428816]
[1768904300551,0.001,3101.2,3100.9,15.21912741]
[1768904300747,0.001,3101.2,3100.9,11.99428816]
[1768904301648,11.83082075,3101.2,3100.7,17.30402019]
[1768904301848,11.83082075,3101.2,3100.7,14.07898422]
[1768904302049,11.83082075,3101.2,3100.8,0.531]
[1768904302803,13.01390283,3101.2,3100.7,0.531]
[1768904303249,13.01390283,3101.2,3100.6,0.531]
[1768904304184,13.01390283,3101.2,3100.5,0.531]
[1768904305571,13.01390283,3101.2,3100.9,0.002]
[1768904305772,11.44548875,3100.8,3100.4,0.002]
[1768904306147,11.44548875,3100.8,3100.5,0.002]
[1768904306992,0.001,3100.9,3100.6,11.44594838]
[1768904307206,0.001,3101.2,3100.6,11.44594838]
[1768904307860,0.001,3101.2,3100.8,11.44594838]
[1768904308064,0.001,3101.2,3101.0,11.44594838]
[1768904309687,11.44648875,3101.2,3100.7,0.531]
[1768904310076,11.44648875,3101.2,3100.5,0.002]
[1768904310390,11.44648875,3101.2,3100.5,11.44794838]
[1768904311170,11.44648875,3101.2,3100.5,15.20422081]
[1768904311560,11.44648875,3101.2,3100.6,11.44594838]
[1768904311759,12.59113763,3101.2,3100.6,11.44594838]
[1768904314160,12.59113763,3101.2,3100.7,11.44594838]
[1768904314490,0.001,3101.2,3100.7,11.44594838]
[1768904315592,0.001,3101.2,3100.9,11.44594838]
[1768904315794,0.001,3101.5,3101.1,11.44594838]
[1768904315984,0.001,3101.5,3100.8,3.2249742]
[1768904315985,11.44648875,3101.5,3101.0,0.531]
[1768904316491,11.44648875,3101.5,3101.0,11.97694838]
[1768904316700,0.001,3101.5,3101.0,11.97694838]
[1768904317358,0.001,3101.5,3101.0,11.44594838]
[1768904317591,11.44648875,3101.5,3101.0,11.97694838]
[1768904318900,11.44648875,3101.5,3101.0,15.20171301]
[1768904319209,11.44648875,3101.5,3101.0,11.97694838]
[1768904319604,11.44648875,3101.5,3101.0,11.97894838]
[1768904320305,11.44648875,3101.5,3101.0,15.20371129]
[1768904320508,0.001,3101.5,3101.1,11.44594838]
[1768904321786,11.44548875,3102.1,3101.3,11.44594838]
[1768904322191,11.44548875,3102.1,3101.5,11.44594838]